[Event "ESCC-50 2022"]
[Site "Lublin"]
[Date "2022.07.08"]
[Round "4.7"]
[White "Wielosz, Jaroslaw"]
[Black "Krzyzanowska-Zadlo, Lidia"]
[Result "1/2-1/2"]
[ECO "A38"]
[WhiteElo "1891"]
[BlackElo "1732"]
[Annotator "NA RC"]
[PlyCount "63"]
[EventDate "2022.07.05"]
[EventType "swiss"]
[EventCountry "POL"]
[SourceTitle "playchess.com"]
[Source "ChessBase"]
[SourceQuality "1"]
[TimeControl "40/5400+30:1800+30"]

1. Nf3 {[%emt 0:00:46]} Nf6 {[%emt 0:01:17]} 2. c4 {[%emt 0:00:16]} c5 {[%emt 0:02:18]} 3. Nc3 {[%emt 0:00:32]} Nc6 {[%emt 0:02:59]} 4. g3 {[%emt 0:00:19]} g6 {[%emt 0:03:15]} 5. Bg2 {[%emt 0:00:09]} Bg7 {[%emt 0:00:05]} 6. d3 {[%emt 0:00:39]} O-O {[%emt 0:00:33]} 7. O-O {[%emt 0:02:46]} d6 {[%emt 0:07:23]} 8. a3 {[%emt 0:00:13]} a6 {[%emt 0:18:24]} 9. Rb1 {[%emt 0:00:09]} Rb8 {[%emt 0:01:14]} 10. b4 {[%emt 0:00:43]} cxb4 {[%emt 0:00:45]} 11. axb4 {[%emt 0:00:13]} b5 {[%emt 0:00:14]} 12. cxb5 {[%emt 0:04:48]} axb5 {[%emt 0:00:09]} 13. Bd2 {[%emt 0:02:45]} Bd7 {[%emt 0:02:57]} 14. Qc1 {[%emt 0:04:39]} Qc8 {[%emt 0:03:18]} 15. Bh6 {[%emt 0:05:44]} Re8 {[%emt 0:14:12]} 16. Bxg7 {[%emt 0:00:49]} Kxg7 {[%emt 0:00:03]} 17. Qb2 {[%emt 0:03:55]} Bh3 {[%emt 0:02:06]} 18. Ne4 {[%emt 0:03:56]} Bxg2 {[%emt 0:00:36]} 19. Kxg2 {[%emt 0:05:35]} Qd7 {[%emt 0:03:42]} 20. Nxf6 {[%emt 0:01:22]} exf6 {[%emt 0:00:04]} 21. Rbc1 {[%emt 0:19:35]} Rbc8 {[%emt 0:03:06]} 22. Rc2 {[%emt 0:05:16]} Qb7 {[%emt 0:11:18]} 23. Kg1 {[%emt 0:04:43]} Ne5 {[%emt 0:01:25]} 24. Nd4 {[%emt 0:03:13]} Rxc2 {[%emt 0:03:39]} 25. Qxc2 {[%emt 0:00:41]} Rc8 {[%emt 0:00:40]} 26. Qb3 {[%emt 0:07:33]} h5 {[%emt 0:02:00]} 27. h4 {[%emt 0:02:33]} f5 {[%emt 0:01:26]} 28. Qb2 {[%emt 0:01:54]} Kf8 {[%emt 0:06:23]} 29. Rc1 {[%emt 0:01:56]} Rxc1+ {[%emt 0:01:17]} 30. Qxc1 {[%emt 0:00:08]} Qd5 {[%emt 0:01:23]} 31. Qc8+ {[%emt 0:06:03]} Kg7 {[%emt 0:00:18]} 32. Qc3 1/2-1/2

[Event "ESCC-50 2022"]
[Site "Lublin"]
[Date "2022.07.08"]
[Round "4.8"]
[White "Chlewinski, Artur"]
[Black "Baliuniene, Margarita"]
[Result "0-1"]
[ECO "B27"]
[WhiteElo "1417"]
[BlackElo "1935"]
[Annotator "NA RC"]
[PlyCount "72"]
[EventDate "2022.07.05"]
[EventType "swiss"]
[EventCountry "POL"]
[SourceTitle "playchess.com"]
[Source "ChessBase"]
[SourceQuality "1"]
[TimeControl "40/5400+30:1800+30"]

1. e4 {[%emt 0:00:04]} c5 {[%emt 0:00:05]} 2. Nf3 {[%emt 0:00:07]} g6 {[%emt 0:00:15]} 3. d4 {[%emt 0:00:46]} cxd4 {[%emt 0:00:05]} 4. Nxd4 {[%emt 0:00:01]} Bg7 {[%emt 0:00:12]} 5. c3 {[%emt 0:00:55]} Nc6 {[%emt 0:00:16]} 6. Be3 {[%emt 0:00:34]} Nf6 {[%emt 0:00:24]} 7. f3 {[%emt 0:07:06]} O-O {[%emt 0:00:39]} 8. Qd2 {[%emt 0:02:04]} d5 {[%emt 0:00:48]} 9. Nxc6 {[%emt 0:03:22]} bxc6 {[%emt 0:00:09]} 10. e5 {[%emt 0:02:56]} Nd7 {[%emt 0:00:56]} 11. f4 {[%emt 0:00:46]} e6 {[%emt 0:00:43]} 12. g3 {[%emt 0:08:58]} c5 {[%emt 0:02:02]} 13. Be2 {[%emt 0:05:14]} Qc7 {[%emt 0:04:36]} 14. O-O {[%emt 0:04:38]} Bb7 {[%emt 0:02:53]} 15. Na3 {[%emt 0:01:30]} a6 {[%emt 0:01:28]} 16. b4 {[%emt 0:02:01]} f6 {[%emt 0:05:14]} 17. Bg4 {[%emt 0:24:44]} Rfe8 {[%emt 0:03:33]} 18. exf6 {[%emt 0:02:34]} Bxf6 {[%emt 0:05:33]} 19. Rad1 {[%emt 0:00:30]} Rac8 {[%emt 0:03:01]} 20. Bf3 {[%emt 0:02:12]} cxb4 {[%emt 0:01:27]} 21. cxb4 {[%emt 0:01:04]} Bc3 {[%emt 0:01:15]} 22. Qd3 {[%emt 0:02:15]} Bxb4 {[%emt 0:00:32]} 23. Rc1 {[%emt 0:07:54]} Qa5 {[%emt 0:00:32]} 24. Nc4 {[%emt 0:01:08]} Qxa2 {[%emt 0:09:09]} 25. Ne5 {[%emt 0:02:02]} Nxe5 {[%emt 0:07:23]} 26. fxe5 {[%emt 0:00:16]} Qa5 {[%emt 0:09:19]} 27. Qd4 {[%emt 0:04:37]} Qb5 {[%emt 0:04:15]} 28. h4 {[%emt 0:00:41]} a5 {[%emt 0:02:05]} 29. Kg2 {[%emt 0:01:18]} Qd7 {[%emt 0:01:07]} 30. h5 {[%emt 0:03:15]} Ba6 {[%emt 0:00:31]} 31. Rh1 {[%emt 0:05:09]} Rxc1 {[%emt 0:00:35]} 32. Bxc1 {[%emt 0:00:34]} Qg7 {[%emt 0:07:15]} 33. Rh4 {[%emt 0:01:15]} Be7 {[%emt 0:00:58]} 34. Rg4 {[%emt 0:00:42]} Rc8 {[%emt 0:02:58]} 35. Bb2 {[%emt 0:02:36]} Rc2+ {[%emt 0:00:51]} 36. Kh3 {[%emt 0:00:15]} Bf1+ {[%emt 0:00:17]} 0-1

[Event "ESCC-50 2022"]
[Site "Lublin"]
[Date "2022.07.08"]
[Round "4.9"]
[White "Warnk, Torsten"]
[Black "Leszner, Liliana"]
[Result "0-1"]
[ECO "A48"]
[WhiteElo "1763"]
[BlackElo "1872"]
[Annotator "NA RC"]
[PlyCount "82"]
[EventDate "2022.07.05"]
[EventType "swiss"]
[EventCountry "POL"]
[SourceTitle "playchess.com"]
[Source "ChessBase"]
[SourceQuality "1"]
[TimeControl "40/5400+30:1800+30"]

1. d4 {[%emt 0:00:33]} Nf6 {[%emt 0:00:06]} 2. Nf3 {[%emt 0:00:06]} g6 {[%emt 0:00:13]} 3. c4 {[%emt 0:00:25]} Bg7 {[%emt 0:00:13]} 4. Bf4 {[%emt 0:00:32]} O-O {[%emt 0:00:19]} 5. e3 {[%emt 0:00:21]} c5 {[%emt 0:00:51]} 6. Nc3 {[%emt 0:00:59]} cxd4 {[%emt 0:02:26]} 7. Nxd4 {[%emt 0:01:42]} d6 {[%emt 0:00:44]} 8. Bg5 {[%emt 0:01:32]} Qa5 {[%emt 0:01:08]} 9. Bxf6 {[%emt 0:09:19]} Bxf6 {[%emt 0:00:09]} 10. Rc1 {[%emt 0:04:40]} Nc6 {[%emt 0:02:39]} 11. Nb3 {[%emt 0:06:06]} Qd8 {[%emt 0:02:02]} 12. Bd3 {[%emt 0:08:39]} Ne5 {[%emt 0:02:46]} 13. Be2 {[%emt 0:02:11]} Bd7 {[%emt 0:06:08]} 14. O-O {[%emt 0:05:34]} Rc8 {[%emt 0:01:51]} 15. Nd5 {[%emt 0:02:27]} Bg7 {[%emt 0:01:02]} 16. Nd4 {[%emt 0:02:20]} Nc6 {[%emt 0:05:48]} 17. Nxc6 {[%emt 0:02:48]} bxc6 {[%emt 0:01:23]} 18. Nc3 {[%emt 0:00:21]} Qa5 {[%emt 0:00:31]} 19. Qc2 {[%emt 0:05:04]} Rb8 {[%emt 0:03:49]} 20. Rb1 {[%emt 0:12:49]} Rb7 {[%emt 0:03:11]} 21. Bf3 {[%emt 0:08:47]} Rfb8 {[%emt 0:03:37]} 22. Na4 {[%emt 0:05:41]} Bf5 {[%emt 0:04:39]} 23. e4 {[%emt 0:00:59]} Bd7 {[%emt 0:00:08]} 24. c5 {[%emt 0:02:38]} Rb4 {[%emt 0:04:22]} 25. b3 {[%emt 0:00:51]} d5 {[%emt 0:01:26]} 26. exd5 {[%emt 0:04:17]} Bf5 {[%emt 0:00:12]} 27. Qe2 {[%emt 0:03:17]} Bxb1 {[%emt 0:00:29]} 28. Rxb1 {[%emt 0:02:30]} Qxa4 {[%emt 0:01:26]} 29. dxc6 Qa5 {[%emt 0:01:13]} 30. Qxe7 {[%emt 0:01:03]} Bf8 {[%emt 0:01:07]} 31. Qd7 {[%emt 0:03:14]} Rd8 {[%emt 0:01:01]} 32. c7 {[%emt 0:01:37]} Rxd7 {[%emt 0:00:59]} 33. c8=Q {[%emt 0:00:03]} Rc7 {[%emt 0:00:37]} 34. Qe8 {[%emt 0:01:23]} Qxc5 {[%emt 0:01:35]} 35. Rd1 {[%emt 0:01:24]} Rd4 {[%emt 0:02:15]} 36. Re1 {[%emt 0:01:15]} Re7 {[%emt 0:01:15]} 37. Rxe7 {[%emt 0:00:59]} Qxe7 {[%emt 0:00:03]} 38. Qb5 {[%emt 0:00:26]} Rd2 {[%emt 0:01:40]} 39. g3 {[%emt 0:00:34]} Qe1+ {[%emt 0:00:19]} 40. Qf1 {[%emt 0:00:00]} Qxf1+ {[%emt 0:00:00]} 41. Kxf1 {[%emt 0:00:17]} Rxa2 {[%emt 0:00:26]} 0-1

[Event "ESCC-50 2022"]
[Site "Lublin"]
[Date "2022.07.08"]
[Round "4.11"]
[White "Babijczuk, Wojciech"]
[Black "Chwalewski, Marek"]
[Result "0-1"]
[ECO "B01"]
[WhiteElo "1436"]
[BlackElo "1774"]
[Annotator "NA RC"]
[PlyCount "88"]
[EventDate "2022.07.05"]
[EventType "swiss"]
[EventCountry "POL"]
[SourceTitle "playchess.com"]
[Source "ChessBase"]
[SourceQuality "1"]
[TimeControl "40/5400+30:1800+30"]

1. e4 {[%emt 0:00:30]} d5 {[%emt 0:00:24]} 2. exd5 {[%emt 0:00:00]} Nf6 {[%emt 0:00:08]} 3. d4 {[%emt 0:00:00]} Nxd5 {[%emt 0:00:14]} 4. Nf3 {[%emt 0:01:44]} g6 {[%emt 0:00:22]} 5. Bc4 {[%emt 0:02:19]} Bg7 {[%emt 0:00:37]} 6. c3 {[%emt 0:00:03]} O-O {[%emt 0:01:24]} 7. O-O {[%emt 0:00:17]} c6 {[%emt 0:03:37]} 8. h3 {[%emt 0:00:34]} Qc7 {[%emt 0:00:38]} 9. Re1 {[%emt 0:00:32]} a5 {[%emt 0:04:37]} 10. a4 {[%emt 0:00:39]} b6 {[%emt 0:01:33]} 11. Nbd2 {[%emt 0:04:07]} Ba6 {[%emt 0:01:02]} 12. Bxa6 {[%emt 0:00:13]} Nxa6 {[%emt 0:00:14]} 13. Nf1 {[%emt 0:00:36]} e6 {[%emt 0:01:57]} 14. Ne3 {[%emt 0:01:09]} Rfd8 {[%emt 0:00:26]} 15. Ng4 {[%emt 0:02:52]} h5 {[%emt 0:05:31]} 16. Nge5 {[%emt 0:00:29]} c5 {[%emt 0:01:53]} 17. Qe2 {[%emt 0:02:55]} cxd4 {[%emt 0:02:05]} 18. Nxd4 {[%emt 0:10:48]} Nc5 {[%emt 0:00:29]} 19. f4 {[%emt 0:06:59]} Ne7 {[%emt 0:04:26]} 20. g4 {[%emt 0:08:12]} hxg4 {[%emt 0:00:33]} 21. Qxg4 {[%emt 0:00:46]} Nf5 {[%emt 0:07:30]} 22. Nxf5 {[%emt 0:02:50]} exf5 {[%emt 0:00:35]} 23. Qg2 {[%emt 0:04:41]} Re8 {[%emt 0:02:14]} 24. Be3 {[%emt 0:08:22]} Bxe5 {[%emt 0:02:07]} 25. fxe5 {[%emt 0:00:14]} Nd3 {[%emt 0:00:13]} 26. Bd4 {[%emt 0:01:07]} Nxe1 {[%emt 0:00:38]} 27. Rxe1 {[%emt 0:00:03]} Rad8 {[%emt 0:02:02]} 28. Kf2 {[%emt 0:00:45]} Qc4 {[%emt 0:00:41]} 29. e6 {[%emt 0:07:10]} Rxe6 {[%emt 0:02:10]} 30. Rxe6 {[%emt 0:00:17]} Qxe6 {[%emt 0:00:13]} 31. Qg5 {[%emt 0:00:18]} Rd5 {[%emt 0:04:40]} 32. Qh4 {[%emt 0:06:56]} f6 {[%emt 0:00:32]} 33. Qxf6 {[%emt 0:00:40]} Qxf6 {[%emt 0:00:07]} 34. Bxf6 {[%emt 0:00:07]} Rd2+ {[%emt 0:00:15]} 35. Ke3 {[%emt 0:00:31]} Rxb2 {[%emt 0:00:12]} 36. Bd4 {[%emt 0:00:26]} Kf7 {[%emt 0:01:38]} 37. h4 {[%emt 0:00:42]} b5 {[%emt 0:00:24]} 38. axb5 {[%emt 0:00:44]} Rxb5 {[%emt 0:00:07]} 39. Kd3 {[%emt 0:00:49]} Ke6 {[%emt 0:00:26]} 40. c4 {[%emt 0:00:00]} Rb3+ {[%emt 0:00:00]} 41. Bc3 {[%emt 0:01:32]} f4 {[%emt 0:00:41]} 42. Kc2 {[%emt 0:00:17]} a4 {[%emt 0:00:31]} 43. Bd4 {[%emt 0:00:47]} Rh3 {[%emt 0:00:23]} 44. c5 {[%emt 0:00:33]} Kd5 {[%emt 0:00:12]} 0-1

[Event "ESCC-50 2022"]
[Site "Lublin"]
[Date "2022.07.09"]
[Round "5.1"]
[White "Tereladze, Sopiko"]
[Black "Klimaszewski, Dariusz"]
[Result "1/2-1/2"]
[ECO "B30"]
[WhiteElo "2141"]
[BlackElo "2152"]
[Annotator "RC"]
[PlyCount "38"]
[EventDate "2022.07.05"]
[EventType "swiss"]
[EventCountry "POL"]
[SourceTitle "playchess.com"]
[Source "ChessBase"]
[SourceQuality "1"]
[TimeControl "40/5400+30:1800+30"]

1. e4 {[%emt 0:00:01]} c5 {[%emt 0:00:13]} 2. Nf3 {[%emt 0:00:07]} Nc6 {[%emt 0:00:27]} 3. g3 {[%emt 0:00:17]} g6 {[%emt 0:00:34]} 4. Bg2 {[%emt 0:00:04]} Bg7 {[%emt 0:00:09]} 5. O-O {[%emt 0:00:02]} d6 {[%emt 0:01:21]} 6. Qe2 {[%emt 0:02:25]} e5 {[%emt 0:00:50]} 7. c3 {[%emt 0:00:33]} Nge7 {[%emt 0:00:12]} 8. Na3 {[%emt 0:03:39]} O-O {[%emt 0:00:49]} 9. b3 {[%emt 0:02:01]} a6 {[%emt 0:03:12]} 10. Bb2 {[%emt 0:00:50]} b5 {[%emt 0:00:38]} 11. Nc2 {[%emt 0:01:08]} Bg4 {[%emt 0:06:14]} 12. h3 {[%emt 0:01:53]} Bxf3 {[%emt 0:01:40]} 13. Bxf3 {[%emt 0:00:01]} Qb6 {[%emt 0:01:22]} 14. Rad1 {[%emt 0:01:15]} a5 {[%emt 0:01:29]} 15. d4 {[%emt 0:01:35]} cxd4 {[%emt 0:01:46]} 16. cxd4 {[%emt 0:00:06]} Nb4 {[%emt 0:01:02]} 17. dxe5 {[%emt 0:03:25]} dxe5 {[%emt 0:00:36]} 18. a3 {[%emt 0:08:35]} Nxc2 {[%emt 0:01:20]} 19. Qxc2 {[%emt 0:00:03]} Rac8 1/2-1/2

[Event "ESCC-50 2022"]
[Site "Lublin"]
[Date "2022.07.09"]
[Round "5.2"]
[White "Sielicki, Tomasz"]
[Black "Mrva, Martin"]
[Result "0-1"]
[ECO "C41"]
[WhiteElo "1967"]
[BlackElo "2385"]
[Annotator "RC"]
[PlyCount "68"]
[EventDate "2022.07.05"]
[EventType "swiss"]
[EventCountry "POL"]
[SourceTitle "playchess.com"]
[Source "ChessBase"]
[SourceQuality "1"]
[TimeControl "40/5400+30:1800+30"]

1. d4 {[%emt 0:01:31]} d6 {[%emt 0:00:16]} 2. e4 {[%emt 0:00:26]} Nf6 {[%emt 0:00:08]} 3. Nc3 {[%emt 0:00:23]} e5 {[%emt 0:00:09]} 4. Nf3 {[%emt 0:00:46]} Nbd7 {[%emt 0:00:08]} 5. g4 {[%emt 0:06:20]} Nxg4 {[%emt 0:10:30]} 6. Rg1 {[%emt 0:00:40]} Ngf6 {[%emt 0:08:57]} 7. Bc4 {[%emt 0:01:18]} h6 {[%emt 0:00:59]} 8. Be3 {[%emt 0:01:06]} c6 {[%emt 0:04:20]} 9. Qd3 {[%emt 0:00:32]} b5 {[%emt 0:06:30]} 10. Bb3 {[%emt 0:00:34]} a5 {[%emt 0:00:14]} 11. a4 {[%emt 0:02:30]} b4 {[%emt 0:01:43]} 12. Qc4 {[%emt 0:10:13]} d5 {[%emt 0:01:08]} 13. exd5 {[%emt 0:01:13]} Nb6 {[%emt 0:01:56]} 14. Qxc6+ {[%emt 0:10:30]} Bd7 {[%emt 0:00:24]} 15. Qb7 {[%emt 0:14:13]} Rb8 {[%emt 0:02:23]} 16. Qa6 {[%emt 0:01:20]} bxc3 {[%emt 0:00:20]} 17. bxc3 {[%emt 0:01:42]} Qc7 {[%emt 0:04:41]} 18. Nxe5 {[%emt 0:06:49]} Qxc3+ {[%emt 0:01:10]} 19. Ke2 {[%emt 0:00:11]} Bd6 {[%emt 0:00:11]} 20. Nc6 {[%emt 0:02:32]} O-O {[%emt 0:06:42]} 21. Nxb8 {[%emt 0:00:55]} Rxb8 {[%emt 0:00:08]} 22. Qd3 {[%emt 0:00:20]} Nbxd5 {[%emt 0:02:29]} 23. Qxc3 {[%emt 0:04:44]} Nxc3+ {[%emt 0:00:12]} 24. Kd3 {[%emt 0:00:09]} Bb4 {[%emt 0:00:40]} 25. Bxh6 {[%emt 0:17:00]} Bf5+ {[%emt 0:00:09]} 26. Kd2 {[%emt 0:00:19]} Ng4 {[%emt 0:00:08]} 27. Be3 {[%emt 0:00:57]} Nxh2 {[%emt 0:00:50]} 28. Rg2 {[%emt 0:00:55]} Nf3+ {[%emt 0:00:48]} 29. Kc1 {[%emt 0:00:13]} Bh3 {[%emt 0:02:47]} 30. Rg3 {[%emt 0:01:09]} Ne2+ {[%emt 0:00:08]} 31. Kd1 {[%emt 0:01:55]} Nxg3 {[%emt 0:00:08]} 32. fxg3 {[%emt 0:00:02]} Bg4 {[%emt 0:00:38]} 33. Kc1 {[%emt 0:00:28]} Bc3 {[%emt 0:00:25]} 34. Rb1 {[%emt 0:00:05]} Re8 {[%emt 0:00:21]} 0-1

[Event "ESCC-50 2022"]
[Site "Lublin"]
[Date "2022.07.09"]
[Round "5.3"]
[White "Lasinskas, Povilas"]
[Black "Druckenthaner, Andreas"]
[Result "0-1"]
[ECO "A83"]
[WhiteElo "2096"]
[BlackElo "2272"]
[Annotator "RC"]
[PlyCount "88"]
[EventDate "2022.07.05"]
[EventType "swiss"]
[EventCountry "POL"]
[SourceTitle "playchess.com"]
[Source "ChessBase"]
[SourceQuality "1"]
[TimeControl "40/5400+30:1800+30"]

1. d4 {[%emt 0:00:04]} f5 {[%emt 0:00:06]} 2. e4 {[%emt 0:00:54]} fxe4 {[%emt 0:00:08]} 3. Nc3 {[%emt 0:00:03]} Nf6 {[%emt 0:00:10]} 4. Bg5 {[%emt 0:00:06]} Nc6 {[%emt 0:00:08]} 5. d5 {[%emt 0:00:12]} Ne5 {[%emt 0:00:05]} 6. Qd4 {[%emt 0:00:06]} Nf7 {[%emt 0:00:11]} 7. f4 {[%emt 0:01:34]} c6 {[%emt 0:03:54]} 8. O-O-O {[%emt 0:00:38]} Qa5 {[%emt 0:12:11]} 9. Bxf6 {[%emt 0:02:08]} gxf6 {[%emt 0:00:16]} 10. Qxe4 {[%emt 0:00:39]} e6 {[%emt 0:09:43]} 11. dxe6 {[%emt 0:09:12]} dxe6 {[%emt 0:00:26]} 12. Bc4 {[%emt 0:00:23]} Nd6 {[%emt 0:23:39]} 13. Rxd6 {[%emt 0:04:34]} Bxd6 {[%emt 0:02:05]} 14. Bxe6 {[%emt 0:00:13]} Kd8 {[%emt 0:00:35]} 15. Bxc8 {[%emt 0:11:02]} Rxc8 {[%emt 0:01:54]} 16. Nge2 {[%emt 0:01:29]} Kc7 {[%emt 0:03:08]} 17. Qe6 {[%emt 0:04:13]} f5 {[%emt 0:12:23]} 18. Rd1 {[%emt 0:06:30]} Rhd8 {[%emt 0:04:47]} 19. g3 {[%emt 0:02:09]} Bb4 {[%emt 0:00:43]} 20. Nd4 {[%emt 0:19:23]} Bxc3 {[%emt 0:02:09]} 21. bxc3 {[%emt 0:00:02]} Rd5 22. Rd3 {[%emt 0:08:12]} Qxa2 {[%emt 0:08:49]} 23. Qf7+ {[%emt 0:08:12]} Kb8 {[%emt 0:01:11]} 24. Re3 {[%emt 0:00:52]} Rcd8 {[%emt 0:02:19]} 25. Re8 {[%emt 0:05:36]} Qa1+ {[%emt 0:00:33]} 26. Kd2 {[%emt 0:00:02]} Qa5 {[%emt 0:00:20]} 27. Kd3 {[%emt 0:05:17]} Rxe8 {[%emt 0:00:23]} 28. Qxe8+ {[%emt 0:00:33]} Qd8 {[%emt 0:00:47]} 29. Qe6 {[%emt 0:00:37]} c5 {[%emt 0:00:29]} 30. Kc4 {[%emt 0:00:08]} Rd6 {[%emt 0:00:28]} 31. Qe5 {[%emt 0:01:00]} cxd4 {[%emt 0:00:10]} 32. cxd4 {[%emt 0:00:03]} a6 {[%emt 0:02:03]} 33. c3 {[%emt 0:00:41]} Qb6 {[%emt 0:00:48]} 34. d5 {[%emt 0:01:01]} Qc7+ {[%emt 0:01:30]} 35. Kd4 {[%emt 0:00:11]} b5 {[%emt 0:00:31]} 36. Qe8+ {[%emt 0:01:52]} Ka7 {[%emt 0:00:20]} 37. Qg8 {[%emt 0:00:28]} Rd8 {[%emt 0:00:44]} 38. Qe6 {[%emt 0:00:19]} Qb6+ {[%emt 0:00:23]} 39. Ke5 {[%emt 0:00:10]} Qxe6+ {[%emt 0:00:11]} 40. dxe6 {[%emt 0:00:00]} a5 {[%emt 0:00:00]} 41. Kxf5 {[%emt 0:00:23]} b4 {[%emt 0:00:49]} 42. cxb4 {[%emt 0:00:08]} axb4 {[%emt 0:00:13]} 43. e7 {[%emt 0:00:10]} Rb8 {[%emt 0:00:27]} 44. Ke6 {[%emt 0:00:59]} b3 {[%emt 0:00:12]} 0-1

[Event "ESCC-50 2022"]
[Site "Lublin"]
[Date "2022.07.09"]
[Round "5.4"]
[White "Lilja, Richard"]
[Black "Garabetyan, Arno"]
[Result "1/2-1/2"]
[ECO "A03"]
[WhiteElo "2131"]
[BlackElo "2056"]
[Annotator "NA RC"]
[PlyCount "69"]
[EventDate "2022.07.05"]
[EventType "swiss"]
[EventCountry "POL"]
[SourceTitle "playchess.com"]
[Source "ChessBase"]
[SourceQuality "1"]
[TimeControl "40/5400+30:1800+30"]

1. f4 {[%emt 0:00:03]} d5 {[%emt 0:00:17]} 2. Nf3 {[%emt 0:00:11]} Nf6 {[%emt 0:00:09]} 3. e3 {[%emt 0:00:29]} g6 {[%emt 0:01:53]} 4. Be2 {[%emt 0:00:12]} Bg7 {[%emt 0:00:10]} 5. O-O {[%emt 0:00:08]} O-O {[%emt 0:00:19]} 6. d3 {[%emt 0:00:17]} b6 {[%emt 0:04:27]} 7. a4 {[%emt 0:03:41]} c5 {[%emt 0:03:39]} 8. Kh1 {[%emt 0:01:15]} Bb7 {[%emt 0:03:26]} 9. Ne5 {[%emt 0:01:33]} Nfd7 {[%emt 0:02:54]} 10. Nxd7 {[%emt 0:03:12]} Nxd7 {[%emt 0:01:24]} 11. Nd2 {[%emt 0:13:04]} e5 {[%emt 0:01:57]} 12. f5 {[%emt 0:01:11]} Nf6 {[%emt 0:13:17]} 13. b3 {[%emt 0:12:22]} e4 {[%emt 0:06:49]} 14. Bb2 {[%emt 0:00:10]} exd3 {[%emt 0:13:01]} 15. Bxd3 {[%emt 0:07:47]} Qe7 {[%emt 0:05:26]} 16. Qf3 {[%emt 0:04:19]} d4 {[%emt 0:05:30]} 17. e4 {[%emt 0:00:40]} gxf5 {[%emt 0:10:43]} 18. Qxf5 {[%emt 0:00:24]} Rae8 {[%emt 0:00:34]} 19. Rae1 {[%emt 0:03:14]} Bc8 {[%emt 0:00:14]} 20. Qg5 {[%emt 0:04:10]} Ng4 {[%emt 0:00:19]} 21. Qxe7 {[%emt 0:07:26]} Rxe7 {[%emt 0:00:01]} 22. h3 {[%emt 0:01:27]} Ne5 {[%emt 0:01:18]} 23. Nc4 {[%emt 0:05:47]} Nxc4 {[%emt 0:02:12]} 24. Bxc4 {[%emt 0:00:07]} Be6 {[%emt 0:00:17]} 25. Bd3 {[%emt 0:00:17]} Be5 {[%emt 0:02:45]} 26. Bc1 {[%emt 0:00:18]} Kg7 {[%emt 0:00:56]} 27. Bf4 {[%emt 0:01:05]} f6 {[%emt 0:00:18]} 28. Rf3 {[%emt 0:01:57]} Bxf4 {[%emt 0:02:22]} 29. Rxf4 {[%emt 0:00:06]} Bf7 {[%emt 0:00:05]} 30. g4 {[%emt 0:07:25]} Bg6 {[%emt 0:00:45]} 31. Kg2 {[%emt 0:02:23]} Rfe8 {[%emt 0:04:37]} 32. Kf3 {[%emt 0:05:51]} Re5 {[%emt 0:00:26]} 33. a5 {[%emt 0:01:01]} R8e7 {[%emt 0:01:10]} 34. axb6 {[%emt 0:00:08]} axb6 {[%emt 0:00:01]} 35. Kg3 {[%emt 0:02:31]} 1/2-1/2

[Event "ESCC-50 2022"]
[Site "Lublin"]
[Date "2022.07.09"]
[Round "5.5"]
[White "Padrak, Rafal"]
[Black "Wielosz, Jaroslaw"]
[Result "1/2-1/2"]
[ECO "D80"]
[WhiteElo "2125"]
[BlackElo "1891"]
[Annotator "NA RC"]
[PlyCount "93"]
[EventDate "2022.07.05"]
[EventType "swiss"]
[EventCountry "POL"]
[SourceTitle "playchess.com"]
[Source "ChessBase"]
[SourceQuality "1"]
[TimeControl "40/5400+30:1800+30"]

1. d4 {[%emt 0:00:02]} Nf6 {[%emt 0:00:45]} 2. c4 {[%emt 0:00:07]} g6 {[%emt 0:00:10]} 3. Nc3 {[%emt 0:00:06]} d5 {[%emt 0:00:12]} 4. Bg5 {[%emt 0:00:32]} Ne4 {[%emt 0:00:29]} 5. Bh4 {[%emt 0:00:26]} Nxc3 {[%emt 0:00:42]} 6. bxc3 {[%emt 0:00:04]} dxc4 {[%emt 0:01:24]} 7. e3 {[%emt 0:00:12]} Be6 {[%emt 0:06:46]} 8. Nf3 {[%emt 0:00:22]} Bg7 {[%emt 0:11:34]} 9. Be2 {[%emt 0:01:15]} O-O {[%emt 0:03:14]} 10. O-O {[%emt 0:00:47]} b5 {[%emt 0:08:51]} 11. a4 {[%emt 0:02:21]} c6 {[%emt 0:01:11]} 12. h3 {[%emt 0:05:01]} h6 {[%emt 0:06:15]} 13. Qc1 {[%emt 0:02:56]} Nd7 {[%emt 0:08:27]} 14. Nd2 {[%emt 0:02:46]} Nb6 {[%emt 0:05:07]} 15. Bf3 {[%emt 0:07:37]} Nd5 {[%emt 0:04:16]} 16. Qa3 {[%emt 0:02:16]} g5 {[%emt 0:00:59]} 17. Bg3 {[%emt 0:00:29]} f5 {[%emt 0:07:26]} 18. axb5 {[%emt 0:03:23]} cxb5 {[%emt 0:01:41]} 19. e4 {[%emt 0:14:13]} fxe4 {[%emt 0:08:20]} 20. Bxe4 {[%emt 0:03:52]} a5 {[%emt 0:00:31]} 21. Qc1 {[%emt 0:19:45]} Kh8 {[%emt 0:07:17]} 22. Nf3 {[%emt 0:00:35]} Bf5 {[%emt 0:06:14]} 23. Bxf5 {[%emt 0:04:02]} Rxf5 {[%emt 0:00:07]} 24. Qc2 {[%emt 0:00:33]} e6 {[%emt 0:02:15]} 25. Ne5 {[%emt 0:03:12]} Kg8 {[%emt 0:02:24]} 26. Bh2 {[%emt 0:04:16]} Qe8 {[%emt 0:00:40]} 27. h4 {[%emt 0:06:56]} Bxe5 {[%emt 0:00:37]} 28. Bxe5 {[%emt 0:00:06]} Nf4 {[%emt 0:01:00]} 29. Qe4 {[%emt 0:03:11]} a4 {[%emt 0:02:57]} 30. hxg5 {[%emt 0:01:38]} hxg5 {[%emt 0:00:08]} 31. g3 {[%emt 0:00:07]} Nd3 {[%emt 0:02:33]} 32. g4 {[%emt 0:03:48]} Rxe5 {[%emt 0:00:09]} 33. dxe5 {[%emt 0:00:15]} Ra7 {[%emt 0:00:54]} 34. Ra2 {[%emt 0:04:56]} Rh7 {[%emt 0:01:03]} 35. f3 {[%emt 0:02:51]} Qf8 {[%emt 0:00:15]} 36. Qg6+ {[%emt 0:00:37]} Kh8 {[%emt 0:00:56]} 37. Rh2 {[%emt 0:01:26]} Qc5+ {[%emt 0:00:28]} 38. Kh1 {[%emt 0:01:03]} Rxh2+ {[%emt 0:00:08]} 39. Kxh2 {[%emt 0:00:02]} Qxe5+ {[%emt 0:00:26]} 40. Kh1 {[%emt 0:00:00]} Nf4 {[%emt 0:00:00]} 41. Qe8+ {[%emt 0:10:36]} Kg7 {[%emt 0:03:40]} 42. Rd1 {[%emt 0:02:40]} Nd3 {[%emt 0:00:44]} 43. Rb1 {[%emt 0:01:51]} Qe3 {[%emt 0:04:00]} 44. Qe7+ {[%emt 0:01:03]} Kg6 {[%emt 0:00:44]} 45. Qe8+ {[%emt 0:00:13]} Kg7 {[%emt 0:01:18]} 46. Qe7+ {[%emt 0:00:08]} Kg6 {[%emt 0:00:13]} 47. Qe8+ {[%emt 0:00:05]} 1/2-1/2